[Event "ITT 1st Parada Jamundi 2022"]
[Site "Jamundi Valle"]
[Date "2022.12.09"]
[Round "6.22"]
[White "Estrada Velandia, Henry Andres"]
[Black "Galan Palacio, Anjaly Daniela"]
[Result "1-0"]
[ECO "D00"]
[WhiteElo "1883"]
[BlackElo "1758"]
[Annotator "NA RC COMBH"]
[PlyCount "101"]
[EventDate "2022.12.05"]
[EventType "swiss"]
[EventCountry "COL"]
[SourceTitle "playchess.com"]
[Source "ChessBase"]
[SourceQuality "1"]
[TimeControl "5400+30"]

1. d4 {[%emt 0:05:26]} Nf6 {[%emt 0:00:29]} 2. e3 {[%emt 0:00:46]} e6 {[%emt 0:00:47]} 3. Bd3 {[%emt 0:00:57]} d5 {[%emt 0:00:29]} 4. Ne2 {[%emt 0:00:41]} c5 {[%emt 0:00:33]} 5. c3 {[%emt 0:00:08]} Nc6 {[%emt 0:00:43]} 6. f4 {[%emt 0:00:21]} c4 {[%emt 0:02:26]} 7. Bc2 {[%emt 0:00:11]} Ng4 {[%emt 0:04:13]} 8. O-O {[%emt 0:00:37]} Bd6 {[%emt 0:01:52]} 9. h3 {[%emt 0:00:19]} Nf6 {[%emt 0:00:58]} 10. Nd2 {[%emt 0:00:16]} O-O {[%emt 0:00:47]} 11. Ng3 {[%emt 0:00:39]} Ne7 {[%emt 0:02:52]} 12. e4 {[%emt 0:01:03]} dxe4 {[%emt 0:00:22]} 13. Nxc4 {[%emt 0:01:15]} Qc7 {[%emt 0:01:13]} 14. Ne5 {[%emt 0:02:55]} Ng6 {[%emt 0:01:51]} 15. Nxe4 {[%emt 0:00:36]} Nxe4 {[%emt 0:01:29]} 16. Bxe4 {[%emt 0:00:14]} f5 {[%emt 0:00:35]} 17. Bc2 {[%emt 0:00:17]} Qb6 {[%emt 0:01:17]} 18. Kh2 {[%emt 0:00:19]} Rd8 {[%emt 0:02:12]} 19. Qh5 {[%emt 0:00:45]} Nxe5 {[%emt 0:01:41]} 20. fxe5 {[%emt 0:00:40]} Be7 {[%emt 0:02:16]} 21. Bb3 {[%emt 0:03:00]} a5 {[%emt 0:00:30]} 22. Bg5 {[%emt 0:11:59]} g6 {[%emt 0:01:06]} 23. Qh4 {[%emt 0:00:48]} Bxg5 {[%emt 0:04:02]} 24. Qxg5 {[%emt 0:00:15]} Rf8 {[%emt 0:02:19] [#]} 25. g4 $1 {[%emt 0:12:39]} Kg7 $2 {[%emt 0:02:23]} (25... a4 $2 26. gxf5 Qd8 27. Qh6 $18) (25... Kh8 26. Qh6 (26. Qe7 Qd8 $18) 26... Rg8) 26. gxf5 {[%emt 0:00:22]} Qd8 {[%emt 0:04:20]} 27. Qxd8 {[%emt 0:02:07]} Rxd8 {[%emt 0:00:02]} 28. fxe6 {[%emt 0:00:44]} a4 {[%emt 0:00:41]} 29. Rf7+ {[%emt 0:00:35]} Kh6 {[%emt 0:00:24]} 30. e7 {[%emt 0:00:31]} Re8 {[%emt 0:00:41]} 31. Bc4 {[%emt 0:00:18]} Ra5 {[%emt 0:04:14]} 32. Rf8 $18 {[%emt 0:03:14]} Bd7 {[%emt 0:01:48]} 33. e6 {[%emt 0:00:30]} Rxe7 {[%emt 0:00:14]} 34. exd7 {[%emt 0:00:35]} Rxd7 {[%emt 0:00:23]} 35. Rf7 {[%emt 0:01:07]} Rxf7 {[%emt 0:00:27]} 36. Bxf7 {[%emt 0:00:21]} Rf5 {[%emt 0:00:02]} 37. Be8 {[%emt 0:01:02]} Rf2+ {[%emt 0:00:33]} 38. Kg3 {[%emt 0:00:18]} Rxb2 {[%emt 0:00:09]} 39. Bxa4 {[%emt 0:00:21]} Rd2 {[%emt 0:00:39]} 40. Bb5 {[%emt 0:01:38]} Kg5 {[%emt 0:01:03]} 41. h4+ {[%emt 0:00:10]} Kh5 {[%emt 0:00:46]} 42. a4 {[%emt 0:02:10]} Rc2 {[%emt 0:00:17]} 43. c4 {[%emt 0:02:31]} Rd2 {[%emt 0:01:04]} 44. d5 {[%emt 0:00:09]} Rd3+ {[%emt 0:00:05]} 45. Kf4 {[%emt 0:00:34]} Rd4+ {[%emt 0:00:20]} 46. Ke5 {[%emt 0:00:20]} Rxh4 {[%emt 0:00:04]} 47. d6 {[%emt 0:00:08]} Rh2 {[%emt 0:00:28]} 48. Rd1 {[%emt 0:00:13]} Re2+ {[%emt 0:03:14]} 49. Kd4 {[%emt 0:01:19]} Rf2 {[%emt 0:00:53]} 50. d7 {[%emt 0:00:13]} Rf8 {[%emt 0:00:10]} 51. Ke4 {[%emt 0:47:24]} 1-0

[Event "ITT 1st Parada Jamundi 2022"]
[Site "Jamundi Valle"]
[Date "2022.12.09"]
[Round "6.23"]
[White "Rodriguez Vila, Andres"]
[Black "Chavarro, Jeffry"]
[Result "0-1"]
[ECO "B28"]
[WhiteElo "2442"]
[BlackElo "2020"]
[Annotator "TA"]
[PlyCount "62"]
[EventDate "2022.12.05"]
[EventType "swiss"]
[EventCountry "COL"]
[SourceTitle "playchess.com"]
[Source "ChessBase"]
[SourceQuality "1"]
[TimeControl "5400+30"]

{[%evp 18,62,-14,0,0,0,0,-8,0,-28,-35,-66,-48,-66,-66,-71,-38,-100,-70,-145,-127,-148,-125,-147,-152,-150,-153,-138,-141,-130,-43,-95,-83,-122,-90,-99,-19,-38,0,-26,-22,-145,-136,-167,-41,-477,-456]} 1. e4 {[%emt 0:07:34]} c5 {[%emt 0:00:17]} 2. Nf3 {[%emt 0:00:44]} a6 {[%emt 0:00:10]} 3. d4 {[%emt 0:00:43]} cxd4 {[%emt 0:00:09]} 4. Nxd4 {[%emt 0:00:33]} Nf6 {[%emt 0:00:10]} 5. Nc3 {[%emt 0:00:41]} e5 {[%emt 0:00:08]} 6. Nb3 {[%emt 0:01:02]} Bb4 {[%emt 0:00:17]} 7. Bd3 {[%emt 0:00:32]} d5 {[%emt 0:01:25]} 8. exd5 {[%emt 0:01:19]} Nxd5 {[%emt 0:00:03]} 9. Bd2 {[%emt 0:00:27]} Nxc3 {[%emt 0:00:51]} 10. bxc3 {[%emt 0:00:45]} Be7 {[%emt 0:00:16] B28: Sicilian: 2 Nf3 a6 (O'Kelly Variation).} 11. O-O {[%emt 0:02:34]} Nc6 {[%emt 0:00:14]} 12. Qe2 {[%emt 0:03:09]} O-O {[%emt 0:02:12] The position is equal.} 13. Qh5 {[%emt 0:02:43][%csl Gd3][%cal Rh5h7]} g6 {[%emt 0:00:18] [#]} 14. Qh6 $146 {[%emt 0:03:10]} ({Predecessor:} 14. Qe2 Qc7 15. f4 exf4 16. Bxf4 Bd6 17. Bxd6 Qxd6 18. Rad1 Qe5 19. Nd4 Qxe2 20. Bxe2 {½-½ (55) Sztepa,S (2085)-Bordos,J (2110) Eger 1999}) 14... Re8 {[%emt 0:05:09]} 15. Rfe1 {[%emt 0:03:56]} Bf8 {[%emt 0:05:15]} 16. Qe3 {[%emt 0:01:35]} Qc7 {[%emt 0:04:36]} 17. g3 {[%emt 0:07:34]} (17. Rab1 $15) 17... Bh3 {[%emt 0:09:20]} 18. Bf1 {[%emt 0:02:45]} (18. Rab1 $15) 18... Bxf1 $17 {[%emt 0:00:13]} 19. Kxf1 {[%emt 0:00:24]} Rad8 {[%emt 0:00:18]} 20. Rad1 {[%emt 0:01:01]} Na5 {[%emt 0:07:51][%cal Bc6a5,Ba5c4,Bc4b2][%mdl 32] Black is more active.} 21. Qf3 {[%emt 0:04:09]} Nc4 {[%emt 0:07:33]} 22. Bg5 {[%emt 0:03:21] Prevents a5.} Rxd1 {[%emt 0:01:37]} 23. Rxd1 {[%emt 0:01:07]} Bg7 {[%emt 0:14:31]} (23... e4 $17 24. Qe2 Bg7) 24. Qe4 {[%emt 0:04:20]} (24. Qd5 $15) 24... h6 {[%emt 0:05:06]} 25. Be3 {[%emt 0:01:51]} Nb2 {[%emt 0:04:17]} 26. Re1 {[%emt 0:03:19]} Qxc3 {[%emt 0:02:14]} ({Black should try} 26... b5 $17 27. Nc5 Rd8) 27. Qxb7 {[%emt 0:00:54]} a5 {[%emt 0:06:43]} 28. Qb5 {[%emt 0:01:53] Prevents a4.} Ra8 {[%emt 0:04:38]} 29. Rc1 {[%emt 0:02:32] [#]} (29. Qb7 $11 {remains equal.} Re8 30. Nxa5) 29... Nc4 $1 {[%emt 0:04:18]} 30. Qc5 {[%emt 0:00:27] [#]} a4 {[%emt 0:02:53]} (30... Bf8 $1 $19 {[%cal Rf8c5]} 31. Qd5 Nxe3+ 32. fxe3 Rc8) 31. Na1 $2 {[%emt 0:01:43][%mdl 8192]} (31. Kg1 $1 $15) 31... Bf8 {[%emt 0:00:57] Weighted Error Value: White=0.48/Black=0.23 (precise)} 0-1

[Event "ITT 1st Parada Jamundi 2022"]
[Site "Jamundi Valle"]
[Date "2022.12.09"]
[Round "6.24"]
[White "Sanchez Barreto, Josue Efrain"]
[Black "Hernandez Jimenez, Xavi"]
[Result "0-1"]
[ECO "D02"]
[WhiteElo "1349"]
[BlackElo "1678"]
[Annotator "NA RC COMBH"]
[PlyCount "60"]
[EventDate "2022.12.05"]
[EventType "swiss"]
[EventCountry "COL"]
[SourceTitle "playchess.com"]
[Source "ChessBase"]
[SourceQuality "1"]
[TimeControl "5400+30"]

1. d4 {[%emt 1:31:00]} d5 {[%emt 0:12:44]} 2. Bf4 {[%emt 0:00:00]} Bf5 {[%emt 0:00:44]} 3. e3 {[%emt 0:00:00]} Nf6 {[%emt 0:00:30]} 4. Nd2 {[%emt 0:00:00]} e6 {[%emt 0:00:42]} 5. Ngf3 {[%emt 0:00:00]} Bd6 {[%emt 0:00:39]} 6. Ne5 {[%emt 0:00:00]} O-O {[%emt 0:00:58]} 7. c4 {[%emt 0:00:00]} c6 {[%emt 0:02:03]} 8. Be2 {[%emt 0:00:00]} Ne4 {[%emt 0:08:49]} 9. c5 {[%emt 0:00:00]} Bc7 {[%emt 0:00:38]} 10. Ndf3 {[%emt 0:00:00]} Ba5+ {[%emt 0:02:06]} 11. Kf1 {[%emt 0:00:00]} f6 {[%emt 0:00:53]} 12. Nd3 {[%emt 0:00:00]} Nd7 {[%emt 0:02:00]} 13. b4 {[%emt 0:00:00]} Bc7 {[%emt 0:00:12]} 14. Nh4 {[%emt 0:00:00]} Bg6 {[%emt 0:04:28]} 15. Nxg6 {[%emt 0:00:00]} hxg6 {[%emt 0:00:07]} 16. Bxc7 {[%emt 0:00:00]} Qxc7 {[%emt 0:00:08]} 17. Nf4 {[%emt 0:00:00]} Kf7 {[%emt 0:03:23]} 18. f3 {[%emt 0:00:00]} Ng5 {[%emt 0:05:04]} 19. Qc2 {[%emt 0:00:00]} f5 {[%emt 0:01:13]} 20. h4 {[%emt 0:00:00]} Rh8 {[%emt 0:02:31]} 21. Kf2 {[%emt 0:00:00]} e5 {[%emt 0:02:39]} 22. Nxg6 {[%emt 0:00:00]} Kxg6 {[%emt 0:00:20]} 23. hxg5 {[%emt 0:00:00]} exd4 {[%emt 0:00:31]} 24. exd4 {[%emt 0:00:00]} Qf4 {[%emt 0:01:04]} 25. Qd3 {[%emt 0:00:00]} Rh2 {[%emt 0:05:53]} 26. Rxh2 {[%emt 0:00:00]} Qxh2 {[%emt 0:00:06]} 27. Qe3 {[%emt 0:00:00]} Qh4+ {[%emt 0:04:33]} 28. Kg1 {[%emt 0:00:00]} Rh8 {[%emt 0:07:17]} 29. Qe6+ {[%emt 0:00:00]} Nf6 {[%emt 0:00:12]} 30. gxf6 {[%emt 0:00:00]} Qxd4+ {[%emt 0:00:08]} 0-1

[Event "ITT 1st Parada Jamundi 2022"]
[Site "Jamundi Valle"]
[Date "2022.12.08"]
[Round "6.25"]
[White "Mata Zambrano, Luis Enrique"]
[Black "Caro Gallego, James Stiven"]
[Result "1-0"]
[ECO "C11"]
[WhiteElo "1544"]
[BlackElo "1884"]
[Annotator "NA RC COMBH"]
[PlyCount "75"]
[EventDate "2022.12.05"]
[EventType "swiss"]
[EventCountry "COL"]
[SourceTitle "playchess.com"]
[Source "ChessBase"]
[SourceQuality "1"]
[TimeControl "5400+30"]

1. e4 {[%emt 0:02:39]} e6 {[%emt 0:00:00]} 2. d4 {[%emt 0:00:36]} d5 {[%emt 0:00:05]} 3. Nd2 {[%emt 0:00:11]} Nf6 {[%emt 0:00:54]} 4. e5 {[%emt 0:00:35]} Nfd7 {[%emt 1:31:31]} 5. f4 {[%emt 1:28:59]} c5 {[%emt 0:00:00]} 6. c3 {[%emt 0:00:00]} Nc6 {[%emt 0:01:00]} 7. Ndf3 {[%emt 0:01:00]} Qb6 {[%emt 0:00:00]} 8. Ne2 {[%emt 0:00:00]} g6 {[%emt 0:00:00]} 9. a3 {[%emt 0:00:00]} a5 {[%emt 0:00:00]} 10. Rb1 {[%emt 0:00:00]} a4 {[%emt 0:00:00]} 11. Be3 {[%emt 0:00:00]} c4 {[%emt 0:00:00]} 12. Kf2 {[%emt 0:00:00]} Bg7 {[%emt 0:00:00]} 13. h3 {[%emt 0:00:00]} O-O {[%emt 0:00:00]} 14. g4 {[%emt 0:00:00]} f6 {[%emt 0:04:00]} 15. Bg2 {[%emt 0:04:00]} fxe5 {[%emt 0:00:00]} 16. dxe5 {[%emt 0:00:00]} Qb3 {[%emt 0:00:00]} 17. Qxb3 {[%emt 0:00:00]} axb3 {[%emt 0:00:00]} 18. Kg3 {[%emt 0:00:00]} Bh6 {[%emt 0:02:00]} 19. g5 {[%emt 0:02:00]} Bg7 {[%emt 0:00:00]} 20. h4 {[%emt 0:00:00]} Ne7 {[%emt 0:00:00]} 21. Bh3 {[%emt 0:00:00]} b6 {[%emt 0:01:30]} 22. Bxe6+ {[%emt 0:01:30]} Kh8 {[%emt 0:00:30]} 23. Bxd7 {[%emt 0:00:30]} Bxd7 {[%emt 0:00:00]} 24. Bxb6 {[%emt 0:00:00]} Bf5 {[%emt 0:00:00]} 25. Ra1 {[%emt 0:00:00]} Be4 {[%emt 0:01:30]} 26. Ned4 {[%emt 0:01:30]} Rf7 {[%emt 0:00:00]} 27. h5 {[%emt 0:00:00]} gxh5 {[%emt 0:00:00]} 28. Rxh5 Ng6 {[%emt 0:01:30]} 29. Ne6 {[%emt 0:00:00]} Ra6 {[%emt 0:00:30]} 30. Nxg7 {[%emt 0:02:00]} Kxg7 {[%emt 0:00:30]} 31. Bd4 {[%emt 0:00:30]} Rxf4 {[%emt 0:00:30]} 32. Nd2 {[%emt 0:00:30]} Bf5 {[%emt 0:00:30]} 33. Rah1 {[%emt 0:00:30]} Rg4+ {[%emt 0:00:30]} 34. Kf3 {[%emt 0:00:30]} Nf4 {[%emt 0:00:30]} 35. Rxh7+ {[%emt 0:00:30]} Bxh7 {[%emt 0:00:30]} 36. Kxg4 {[%emt 0:00:30]} Nd3 {[%emt 0:00:00]} 37. e6+ {[%emt 0:00:00]} Kg8 {[%emt 0:00:00]} 38. g6 1-0

[Event "ITT 1st Parada Jamundi 2022"]
[Site "Jamundi Valle"]
[Date "2022.12.09"]
[Round "6.26"]
[White "Ramirez, Andres Felipe"]
[Black "Palacios Gordillo, Camila Estefania"]
[Result "1-0"]
[ECO "C65"]
[WhiteElo "1571"]
[BlackElo "1625"]
[Annotator "NA RC COMBH"]
[PlyCount "55"]
[EventDate "2022.12.05"]
[EventType "swiss"]
[EventCountry "COL"]
[SourceTitle "playchess.com"]
[Source "ChessBase"]
[SourceQuality "1"]
[TimeControl "5400+30"]

1. e4 {[%emt 0:00:56]} e5 {[%emt 1:31:00]} 2. Nf3 {[%emt 1:30:34]} Nc6 {[%emt 0:00:00]} 3. Bb5 {[%emt 0:00:00]} Nf6 {[%emt 0:01:00]} 4. Bxc6 {[%emt 0:01:00]} dxc6 {[%emt 0:00:30]} 5. d3 {[%emt 0:00:30]} Bd6 {[%emt 0:00:00]} 6. Nbd2 {[%emt 0:00:00]} h6 {[%emt 0:01:00]} 7. Qe2 {[%emt 0:01:00]} Be6 {[%emt 0:00:30]} 8. d4 {[%emt 0:00:30]} Nd7 {[%emt 0:00:00]} 9. Nc4 {[%emt 0:00:00]} Bxc4 {[%emt 0:00:00]} 10. Qxc4 {[%emt 0:00:00]} Qe7 {[%emt 0:00:00]} 11. O-O {[%emt 0:00:00]} O-O {[%emt 0:00:00]} 12. Re1 {[%emt 0:00:00]} exd4 {[%emt 0:00:00]} 13. Nxd4 {[%emt 0:00:00]} Ne5 {[%emt 0:00:00]} 14. Qe2 {[%emt 0:00:00]} Rad8 {[%emt 0:00:00]} 15. Nf5 {[%emt 0:00:00]} Qe6 {[%emt 0:00:00]} 16. f4 {[%emt 0:00:00]} Bc5+ {[%emt 0:00:00]} 17. Kh1 {[%emt 0:00:00]} Nd7 {[%emt 0:00:00]} 18. Bd2 {[%emt 0:00:00]} Rfe8 {[%emt 0:00:00]} 19. Bc3 {[%emt 0:00:00]} Bf8 {[%emt 0:00:00]} 20. Nd4 {[%emt 0:00:00]} Qg6 {[%emt 0:00:00]} 21. e5 {[%emt 0:00:00]} Bc5 {[%emt 0:00:00]} 22. f5 {[%emt 0:00:00]} Qh7 {[%emt 0:00:00]} 23. e6 {[%emt 0:00:00]} Nb6 {[%emt 0:00:00]} 24. exf7+ {[%emt 0:00:00]} Kxf7 {[%emt 0:00:00]} 25. Qh5+ {[%emt 0:00:00]} Kf8 {[%emt 0:00:00]} 26. Ne6+ {[%emt 0:00:00]} Rxe6 {[%emt 0:00:00]} 27. fxe6 {[%emt 0:00:00]} g5 {[%emt 0:00:00]} 28. Rf1+ {[%emt 0:10:00]} 1-0

[Event "ITT 1st Parada Jamundi 2022"]
[Site "Jamundi Valle"]
[Date "2022.12.09"]
[Round "6.27"]
[White "Quiceno Ramirez, Edwin Alejandro"]
[Black "Rendon, Isabela"]
[Result "1-0"]
[ECO "E17"]
[WhiteElo "1787"]
[BlackElo "1139"]
[Annotator "NA RC COMBH"]
[PlyCount "59"]
[EventDate "2022.12.05"]
[EventType "swiss"]
[EventCountry "COL"]
[SourceTitle "playchess.com"]
[Source "ChessBase"]
[SourceQuality "1"]
[TimeControl "5400+30"]

1. d4 {[%emt 0:00:28]} d5 {[%emt 0:02:54]} 2. c4 {[%emt 0:00:12]} e6 {[%emt 0:00:09]} 3. Nf3 {[%emt 0:00:10]} Nf6 {[%emt 0:00:16]} 4. g3 {[%emt 0:00:11]} Be7 {[%emt 0:00:24]} 5. Bg2 {[%emt 0:00:20]} O-O {[%emt 0:00:17]} 6. O-O {[%emt 0:00:09]} b6 {[%emt 0:00:44]} 7. cxd5 {[%emt 0:00:48]} exd5 {[%emt 0:00:14]} 8. Qc2 {[%emt 0:00:59]} Bb7 {[%emt 0:01:44]} 9. Ne5 {[%emt 0:01:02]} c5 {[%emt 0:01:11]} 10. dxc5 {[%emt 0:01:25]} bxc5 {[%emt 0:00:16]} 11. Rd1 {[%emt 0:01:11]} Nbd7 {[%emt 0:02:35]} 12. Nc4 {[%emt 0:03:31]} Qc7 {[%emt 0:02:36]} 13. Bf4 {[%emt 0:00:20]} Qc8 {[%emt 0:03:09]} 14. Na5 {[%emt 0:03:41]} Rd8 {[%emt 0:04:37]} 15. Nxb7 {[%emt 0:00:39]} Qxb7 {[%emt 0:00:14]} 16. Nc3 {[%emt 0:00:20]} Nb6 {[%emt 0:00:59]} 17. a4 {[%emt 0:00:46]} a5 {[%emt 0:02:45]} 18. e4 {[%emt 0:06:19]} d4 {[%emt 0:04:24]} 19. Nb5 {[%emt 0:04:01]} Qd7 {[%emt 0:05:17]} 20. Bc7 {[%emt 0:02:24]} Qe6 {[%emt 0:04:45]} 21. f4 {[%emt 0:04:36]} Rd7 {[%emt 0:09:31]} 22. e5 {[%emt 0:16:44]} Nfd5 {[%emt 0:00:34]} 23. f5 {[%emt 0:01:19]} Qh6 {[%emt 0:00:52]} 24. Bxb6 {[%emt 0:00:27]} Qxb6 {[%emt 0:00:13]} 25. Qb3 {[%emt 0:09:11]} Rad8 {[%emt 0:05:23]} 26. e6 {[%emt 0:01:05]} fxe6 {[%emt 0:02:10]} 27. fxe6 {[%emt 0:00:10]} Qxe6 {[%emt 0:00:44]} 28. Re1 {[%emt 0:00:19]} Qf7 {[%emt 0:02:29]} 29. Bh3 {[%emt 0:01:49]} Rb7 {[%emt 0:00:54]} 30. Be6 {[%emt 0:00:15]} 1-0

[Event "ITT 1st Parada Jamundi 2022"]
[Site "Jamundi Valle"]
[Date "2022.12.09"]
[Round "7.1"]
[White "Cruz, Cristhian"]
[Black "Henriquez Villagra, Cristobal"]
[Result "1/2-1/2"]
[ECO "D30"]
[WhiteElo "2552"]
[BlackElo "2587"]
[Annotator "TA"]
[PlyCount "63"]
[EventDate "2022.12.05"]
[EventType "swiss"]
[EventCountry "COL"]
[SourceTitle "playchess.com"]
[Source "ChessBase"]
[SourceQuality "1"]
[TimeControl "5400+30"]

{[%evp 11,63,0,0,0,3,-5,0,-48,0,-21,14,-17,-36,-17,0,0,0,0,42,4,33,0,0,0,0,0,0,0,14,12,11,20,31,41,12,19,12,12,12,12,16,12,12,12,4,5,4,0,0,0,110,110,135,76]} 1. d4 {[%emt 0:03:33]} d5 {[%emt 0:03:05]} 2. c4 {[%emt 0:01:51]} e6 {[%emt 0:00:05]} 3. Nf3 {[%emt 0:00:28]} c6 {[%emt 0:00:05]} 4. g3 {[%emt 0:02:41]} dxc4 {[%emt 0:01:38]} 5. Bg2 {[%emt 0:00:06]} b5 {[%emt 0:02:46]} 6. O-O {[%emt 0:00:48]} Bb7 {[%emt 0:04:59]} 7. b3 {[%emt 0:06:30] D30: Queen's Gambit Declined: Systems without Nc3.} cxb3 $1 {[%emt 0:00:32]} 8. Qxb3 {[%emt 0:00:28]} Nf6 {[%emt 0:00:19]} 9. a4 {[%emt 0:02:55]} (9. Rd1 $11 {might be stronger.}) 9... a6 {[%emt 0:01:17]} (9... b4 $1 $15) 10. Nbd2 {[%emt 0:09:25]} Nbd7 {[%emt 0:13:33] [#]} 11. Ba3 $146 {[%emt 0:31:15]} ({Predecessor:} 11. Rd1 Be7 {½-½ (11) Pecurica,M (2335)-Kalezic,B (2434) Podgorica 2022}) 11... Bxa3 {[%emt 0:04:01]} 12. Qxa3 {[%emt 0:00:03]} Qe7 {[%emt 0:00:16]} (12... a5 {is interesting.} 13. Qd6 b4 14. Nc4 Ne4) 13. Nb3 {[%emt 0:00:37]} Qxa3 {[%emt 0:08:43]} 14. Rxa3 {[%emt 0:00:02]} Rc8 {[%emt 0:01:19][%cal Ba8c8,Bc8c7,Bc7d7][%mdl 32]} 15. Nfd2 {[%emt 0:09:48][%cal Bf3d2,Bd2e4,Be4c5][%mdl 32]} Nd5 {[%emt 0:04:42]} (15... b4 $5 {[%cal Rb4a3]} 16. Ra2 O-O $11) 16. Ne4 {[%emt 0:03:48]} Ke7 {[%emt 0:00:58]} 17. Nbc5 {[%emt 0:24:42]} Rc7 {[%emt 0:05:50]} 18. Nxd7 {[%emt 0:00:00]} Rxd7 {[%emt 0:03:02]} (18... b4 19. Rb3 Rxd7 20. a5 $16 (20. Nc5 a5 $11)) 19. Nc5 {[%emt 0:00:00] Inhibits b4.} b4 {[%emt 0:07:52]} 20. Rb3 {[%emt 0:00:00][%cal Oe2e4]} a5 $1 {[%emt 0:00:29]} 21. Bxd5 {[%emt 0:00:00]} cxd5 {[%emt 0:00:48]} 22. Nxd7 {[%emt 0:00:00]} Kxd7 $11 {[%emt 0:00:03][%mdl 4096] Endgame KRR-KRB} 23. Rc1 {[%emt 0:00:00]} Rc8 {[%emt 0:35:38]} 24. Rxc8 {[%emt 0:00:00]} Kxc8 {[%emt 0:00:00] KR-KB} 25. Kf1 {[%emt 0:00:00]} Bc6 {[%emt 0:00:00]} 26. Rb1 {[%emt 0:00:00]} ({Much worse is} 26. Rf3 Bxa4 27. Ke1 (27. Rxf7 $2 b3 $19) 27... Be8 $17) 26... Bxa4 {[%emt 0:00:00]} 27. Ra1 {[%emt 0:00:00]} b3 $1 {[%emt 0:00:00]} 28. Rb1 {[%emt 0:00:00][%mdl 64] [#]} (28. Rxa4 $2 {perishes.} b2 29. Rxa5 b1=Q+ $19) 28... e5 $1 {[%emt 0:02:30]} 29. dxe5 {Strongly threatening Ke1.} Kd7 {[%emt 0:00:30] Hoping for ...Kc6.} 30. Ke1 {aiming for Kd2.} Ke6 {[%emt 0:00:30]} (30... Kc6 $1 $11 {keeps the balance.} 31. Kd2 Kc5) 31. Kd2 $16 {[%emt 0:07:00]} Kxe5 {[%emt 0:00:30] [#]} 32. Kc3 {[%emt 0:00:30] Weighted Error Value: White=0.08 (flawless) /Black=0.12 (very precise)} (32. Ra1 $142 $1 {[%cal Ra1a4]} b2 33. Rb1 (33. Rxa4 $2 {loses.} b1=Q $19)) 1/2-1/2